{"text_format":"1","workbook":"xlsx","n_sheets":1,"sheets":["Лист 1"],"not_rendered":{"charts":0,"images":0,"macros":1,"external_links":0,"defined_names":3,"comments":0,"pivot_tables":0},"unopened":[],"bounds":{"document_bytes":16777216,"sheet_cells":100000,"rows_first":2000,"rows_last":500,"rows_between":2000,"halvings":0,"cell_chars":16384,"cell_head_chars":4096},"cells_cut":0,"cells_raw":0,"read":"whole","date_system":"1900"}

{"sheet":"Лист 1","index":0,"n_rows":89,"n_cols":9,"rows_kept":89,"cut":false,"hidden":false,"merged":[]}
["ID элемента","Детальное описание",null,"Детальное описание",null,"ID элемента","Детальное описание"]
["32050","Назначение изделия\nМонитор домофона является неотъемлемой частью системы 4-х проводного индивидуального видеодомофона. Он обеспечивает вызов от посетителя, разговор и видеонаблюдение за посетителем, открывание электроуправляемого замка.",null,"*Дополнительное оборудование*",null,"51052","228038;238810",{"$f":"ExtractTxt(G2)","v":""},{"$f":"_xlfn.IFNA(_xlfn.TEXTJOIN(\",\",,_xlfn.REGEXEXTRACT(G2,\"(?<=\\()\\d+(?=\\))\",1)),\"\")","v":""}]
["32051","Назначение изделия\nМонитор домофона является неотъемлемой частью системы 4-х проводного индивидуального видеодомофона. Он обеспечивает вызов от посетителя, разговор и видеонаблюдение за посетителем, открывание электроуправляемого замка.",null,null,null,"7480","231069;288599",{"$f":"ExtractTxt(G3)","v":""},{"$f":"_xlfn.IFNA(_xlfn.TEXTJOIN(\",\",,_xlfn.REGEXEXTRACT(G3,\"(?<=\\()\\d+(?=\\))\",1)),\"\")","v":""}]
["15444",null,null,null,null,"7481","231069;288599",{"$f":"ExtractTxt(G4)","v":""},""]
["15446",null,null,null,null,"7482",231069,{"$f":"ExtractTxt(G5)","v":""},""]
["32052","Назначение изделия\nМонитор домофона является неотъемлемой частью системы 4-х проводного индивидуального видеодомофона. Он обеспечивает вызов от посетителя, разговор и видеонаблюдение за посетителем, открывание электроуправляемого замка.\nОсобенности\n• Механические кнопки управления\n• Питание монитора 220В (встроенный блок питания) + возможность питания от 12V",null,null,null,"7479",231069,{"$f":"ExtractTxt(G6)","v":""},""]
["32053","Назначение изделия\nМонитор домофона является неотъемлемой частью системы 4-х проводного индивидуального видеодомофона. Он обеспечивает вызов от посетителя, разговор и видеонаблюдение за посетителем, открывание электроуправляемого замка.\nОсобенности\n• Механические кнопки управления\n• Запись голосового сообщения от посетителя\n• Пользовательские мелодии вызова\n• Детекторы движения для видеокамер и вызывных панелей\n• Входы тревожных датчиков для старта записи с видеокамер\n• Запись видео или фото по тревоге или вызову\n• Просмотр фото и воспроизведение видео с SD-карты\n• Фоторамка\n• Часы\n• Питание монитора 220В (встроенный блок питания) + возможность питания от 12V",null,null,null,"7484",220613,{"$f":"ExtractTxt(G7)","v":""},""]
["25483",null,null,null,null,"7485",220613,{"$f":"ExtractTxt(G8)","v":""},""]
["25484",null,null,null,null,"7490",220613,{"$f":"ExtractTxt(G9)","v":""},""]
["25485",null,null,null,null,"38641",235215,{"$f":"ExtractTxt(G10)","v":""},""]
["25486",null,null,null,null,"8484","206317;206318;315240;226750;223119;226751;253967",{"$f":"ExtractTxt(G11)","v":""},""]
["25487",null,null,null,null,"8486","206317;206318;315240;226750;223119;226751;253967",{"$f":"ExtractTxt(G12)","v":""},""]
["25488",null,null,null,null,"51030",295846,{"$f":"ExtractTxt(G13)","v":""},""]
["25489",null,null,null,null,"8487","206278;206320;315240;226750;223119;226751;253967",{"$f":"ExtractTxt(G14)","v":""},""]
["25490",null,null,null,null,"10735",292721,{"$f":"ExtractTxt(G15)","v":""},""]
["25491",null,null,null,null,"10732",292721,{"$f":"ExtractTxt(G16)","v":""},""]
["32054","Назначение изделия\nМонитор домофона является неотъемлемой частью системы 4-х проводного индивидуального видеодомофона. Он обеспечивает вызов от посетителя, разговор и видеонаблюдение за посетителем, открывание электроуправляемого замка.\nОсобенности\n• Запись голосового сообщения от посетителя\n• Пользовательские мелодии вызова\n• Детекторы движения для видеокамер и вызывных панелей\n• Входы тревожных датчиков для старта записи с видеокамер\n• Запись видео или фото по тревоге или вызову\n• Просмотр фото и воспроизведение видео с SD-карты\n• Фоторамка\n• Часы\n• Питание монитора 220В (встроенный блок питания) + возможность питания от 12V.",null,null,null,"10737","(292721) 333 A (Eff-Eff 1010) Кнопка",{"$f":"ExtractTxt(G17)","v":"292721; Eff-Eff 1010"},"292721"]
["31718",null,null,null,null,"10733","(292721) 333 A (Eff-Eff 1010) Кнопка",{"$f":"ExtractTxt(G18)","v":"292721; Eff-Eff 1010"},"292721"]
["31719",null,null,null,null,"10734","(292721) 333 A (Eff-Eff 1010) Кнопка",{"$f":"ExtractTxt(G19)","v":"292721; Eff-Eff 1010"},"292721"]
["31720",null,null,null,null,"10736","(292721) 333 A (Eff-Eff 1010) Кнопка",{"$f":"ExtractTxt(G20)","v":"292721; Eff-Eff 1010"},"292721"]
["32370",null,null,null,null,"10731","(292721) 333 A (Eff-Eff 1010) Кнопка",{"$f":"ExtractTxt(G21)","v":"292721; Eff-Eff 1010"},"292721"]
["32371",null,null,null,null,"8488","206278;206320;315240;226750;223119;226751;253967",{"$f":"ExtractTxt(G22)","v":""},""]
["32372",null,null,null,null,"38652","Назначение изделия\nПредназначен для питания -охранно-пожарных систем, системы разграничения доступа, системы видеонаблюдения, медицинское оборудование, системы передачи данных, кассовое оборудование\nОсобенности\nРегулировка выходного напряжения, защита от КЗ, крепление на DIN рейку\n\n(235215) DIN-holder держатель на DIN рейку",{"$f":"ExtractTxt(G23)","v":"235215"},"235215"]
["32373",null,null,null,null,"6077","\n(234046) Универсальный, настенно-потолочный кронштейн",{"$f":"ExtractTxt(G24)","v":"234046"},"234046"]
["32374",null,null,null,null,"49906","297220;297223;297214;297217;297219;297221;297224;297215;297222;297225;297216;297218",{"$f":"ExtractTxt(G25)","v":""},""]
["32375",null,null,null,null,"49910","297220;297223;297214;297217;297219;297221;297224;297215;297222;297225;297216;297218",{"$f":"ExtractTxt(G26)","v":""},""]
["32376",null,null,null,null,"8489","222386;206322;315240;226750;223119;226751;253967",{"$f":"ExtractTxt(G27)","v":""},""]
["32377",null,null,null,null,"8490","222386;206322;315240;226750;223119;226751;253967",{"$f":"ExtractTxt(G28)","v":""},""]
["32378",null,null,null,null,"8491","222386;206322;315240;226750;223119;226751;253967",{"$f":"ExtractTxt(G29)","v":""},""]
["32379",null,null,null,null,"8492","206278;206320;315240;226750;223119;226751;253967",{"$f":"ExtractTxt(G30)","v":""},""]
["32055","Назначение изделия\nМонитор домофона является неотъемлемой частью системы 4-х проводного индивидуального видеодомофона. Он обеспечивает вызов от посетителя, разговор и видеонаблюдение за посетителем, открывание электроуправляемого замка.\nОсобенности\n• Сенсорные кнопки управления\n• Запись голосового сообщения от посетителя\n• Пользовательские мелодии вызова\n• Детекторы движения для видеокамер и вызывных панелей\n• Входы тревожных датчиков для старта записи с видеокамер\n• Запись видео или фото по тревоге или вызову\n• Просмотр фото и воспроизведение видео с SD-карты\n• Фоторамка\n• Часы\n• Питание монитора 220В (встроенный блок питания) + возможность питания от 12V",null,null,null,"38658","Назначение изделия\nПредназначен для питания -охранно-пожарных систем, системы разграничения доступа, системы видеонаблюдения, медицинское оборудование, системы передачи данных, кассовое оборудование\nОсобенности\nРегулировка выходного напряжения, защита от КЗ, крепление на DIN рейку\n\n(235215) DIN-holder держатель на DIN рейку",{"$f":"ExtractTxt(G31)","v":"235215"},"235215"]
["7461",null,null,null,null,"8493","206278;206320;315240;226750;223119;226751;253967",{"$f":"ExtractTxt(G32)","v":""},""]
["7762","Назначение изделия\nИспользуется для подачи питания на электромеханический замок, установленный на подвижной части двери\nКомплектация\nКонтактные штыри, контактная площадка, регулировочные прокладки",null,null,null,"8494","206278;206320;315240;226750;223119;226751;253967",{"$f":"ExtractTxt(G33)","v":""},""]
["7463",null,null,null,null,"8639","315240;226750;223119;226751;253967",{"$f":"ExtractTxt(G34)","v":""},""]
["7763",null,null,null,null,"38663","Назначение изделия\nПредназначен для питания -охранно-пожарных систем, системы разграничения доступа, системы видеонаблюдения, медицинское оборудование, системы передачи данных, кассовое оборудование\nОсобенности\nРегулировка выходного напряжения, защита от КЗ, крепление на DIN рейку\n\n(235215) DIN-holder держатель на DIN рейку",{"$f":"ExtractTxt(G35)","v":"235215"},"235215"]
["50586",null,null,null,null,"46571","\n(304542) Инструмент обжимной для RJ-45, RJ-11/12",{"$f":"ExtractTxt(G36)","v":"304542"},"304542"]
["50587",null,null,null,null,"46573","\n(304542) Инструмент обжимной для RJ-45, RJ-11/12",{"$f":"ExtractTxt(G37)","v":"304542"},"304542"]
["48699",null,null,null,null,"46576","\n(304542) Инструмент обжимной для RJ-45, RJ-11/12",{"$f":"ExtractTxt(G38)","v":"304542"},"304542"]
["48700",null,null,null,null,"46582","\n(304542) Инструмент обжимной для RJ-45, RJ-11/12",{"$f":"ExtractTxt(G39)","v":"304542"},"304542"]
["48701",null,null,null,null,"38065","309077;309048",{"$f":"ExtractTxt(G40)","v":""},""]
["15006",null,null,null,null,"32862","\n(236001)   Кронштейн с козырьком для накладного монтажа многоабонентских панелей BAS-IP:  AA-03,  AA-05,  АА-07,  BА-12.",{"$f":"ExtractTxt(G41)","v":"236001"},"236001"]
["15008",null,null,null,null,"51607","077233;077072;203457;218293;228695",{"$f":"ExtractTxt(G42)","v":""},""]
["15009",null,null,null,null,"51608","268120;077233;077072;203457;218293;216927;228695;210702;216771",{"$f":"ExtractTxt(G43)","v":""},""]
["52052",null,null,null,null,"51603","268120;077233;077072;203457;218293;216927;228695;210702;216771",{"$f":"ExtractTxt(G44)","v":""},""]
["52054",null,null,null,null,"51604","268120;077233;077072;203457;218293;216927;228695;210702;216771",{"$f":"ExtractTxt(G45)","v":""},""]
["52055",null,null,null,null,"51609","268120;077233;077072;203457;218293;216927; 228695;282534;216772",{"$f":"ExtractTxt(G46)","v":""},""]
["52053",null,null,null,null,"51610","268120;077233;077072;203457;218293;216927;228695;282534;216772",{"$f":"ExtractTxt(G47)","v":""},""]
["52056",null,null,null,null,"51605","268120;077233;077072;203457;218293;216927;228695;210702;216771",{"$f":"ExtractTxt(G48)","v":""},""]
["33175",null,null,null,null,"51606","268120;077233;077072;203457;218293;216927;228695;210702;216771",{"$f":"ExtractTxt(G49)","v":""},""]
["33176",null,null,null,null,"11085","\n(230653)   Рычажная тяга с фиксацией для доводчика DC200.",{"$f":"ExtractTxt(G50)","v":"230653"},"230653"]
["33177",null,null,null,null,"6068","230686;238342;217278;208944;259065;233915;233910;233911",{"$f":"ExtractTxt(G51)","v":""},""]
["38616","Особенности\n- корпус из негорючего пластика;\n- автоматическая защита от перегрузок и КЗ.",null,null,null,"4263",252784,{"$f":"ExtractTxt(G52)","v":""},""]
["52018",null,null,null,null,"4264",218506,{"$f":"ExtractTxt(G53)","v":""},""]
["52020",null,null,null,null,"4265","221723;225933",{"$f":"ExtractTxt(G54)","v":""},""]
["52022",null,null,null,null,"4266",218506,{"$f":"ExtractTxt(G55)","v":""},""]
["52023",null,null,null,null,"4267","221723;225933",{"$f":"ExtractTxt(G56)","v":""},""]
["52024",null,null,null,null,"4268","221723;225933",{"$f":"ExtractTxt(G57)","v":""},""]
["52021",null,null,null,null,"4269","221723;225933",{"$f":"ExtractTxt(G58)","v":""},""]
["52025",null,null,null,null,"4270","221723;225933",{"$f":"ExtractTxt(G59)","v":""},""]
["52026",null,null,null,null,"4271","221723;225933",{"$f":"ExtractTxt(G60)","v":""},""]
["7464",null,null,null,null,"4272","221723;225933",{"$f":"ExtractTxt(G61)","v":""},""]
["7465","Назначение изделия\nЗамок предназначен для использования в качестве исполнительного устройства в составе систем контроля и управления доступом, для запирания легких и средних внутренних дверей офисов и административных помещений",null,null,null,"32765","\n(253060) SR-12/3A Блок питания стабилизированный",{"$f":"ExtractTxt(G62)","v":"253060"},"253060"]
["7466","Назначение изделия\nЗамок предназначен для использования в качестве исполнительного устройства в составе систем контроля и управления доступом, для запирания легких и средних внутренних дверей офисов и административных помещений",null,null,null,"7162","\n(220164) Охранный контроллер AC-08",{"$f":"ExtractTxt(G63)","v":"220164"},"220164"]
["7467","Назначение изделия\nЗамок предназначен для использования в качестве исполнительного устройства в составе систем контроля и управления доступом, для запирания легких и средних внутренних дверей офисов и административных помещений",null,null,null,"8062","216674;054192;212277;212293;054073;274873;278093;282142;282141",{"$f":"ExtractTxt(G64)","v":""},""]
["7468","Назначение изделия\nЗамок предназначен для использования в качестве исполнительного устройства в составе систем контроля и управления доступом, для запирания легких и средних внутренних дверей офисов и административных помещений",null,null,null,"8064","216675;054202;212277;212293;054073;274874;278094;282142;282141",{"$f":"ExtractTxt(G65)","v":""},""]
["7469","Назначение изделия\nЗамок предназначен для использования в качестве исполнительного устройства в составе систем контроля и управления доступом, для запирания легких и средних внутренних дверей офисов и административных помещений",null,null,null,"8063","216646;054182;212277;212293;054073;274872;278095;282142;282141",{"$f":"ExtractTxt(G66)","v":""},""]
["51260","Видеоматериалы",null,null,null,"8073","\n(201397) Комплект монтажа MK AL-200PR (серый)\n(205294) L-уголок AL-200PR (серый)\n(212277) AL-150-300-К Комплект крепежа к уголку\n(212293) Комплект 180Р для крепления якоря\n(054051) Планка (проставка) М200\n(274875) MK AL-200PR-Inside (серый) Комплект монтажа для дверей, открывающихся внутрь\n(278098) Комплект смещения якоря 200PR (серый)",{"$f":"ExtractTxt(G67)","v":"201397; серый; 205294; серый; 212277; 212293; 054051; проставка; 274875; серый; 278098; серый"},{"$f":"_xlfn.IFNA(_xlfn.TEXTJOIN(\",\",,_xlfn.REGEXEXTRACT(G67,\"(?<=\\()\\d+(?=\\))\",1)),\"\")","v":"201397,205294,212277,212293,054051,274875,278098"}]
["7476","Назначение изделия\nЗамок предназначен для использования в качестве исполнительного устройства в составе систем контроля и управления доступом, для запирания легких и средних внутренних дверей офисов и административных помещений",null,null,null,"8050","Комплектация\nВ комплект поставки замка AL-250SM входят:\n- корпусная часть (1) 1 шт.\n- якорная часть (2) 1 шт.\n- прокладки 0,5мм (3) 4 шт.\n- прокладки 1мм (4) 8 шт.\n- планка декоративная (5) 2 шт.\n- пластина переходная (6) 4 шт.\n- винт М4х10 (7) 6 шт.\n- винт М5х10 (8) 8 шт.\n- диод 1N5406 1 шт.\n- магнитоконтактный извещатель ИО 102-15/1 1 шт.\n- руководство по эксплуатации 1 шт.\n- упаковочная коробка 1 шт\n\n(215058)   Комплект для накладного монтажа   MK AL-250S   (белый)\n(219561)   Комплект для накладного монтажа   MK AL-250S   (серый)\n(220654)   Комплект для накладного монтажа   MK AL-250S   (коричневый)\n(218951)   Комплект для монтажа на стеклянную дверь   MK AL-250 S Glass\n(285542)   Комплект проставок замка для дверей с большим зазором   250SM (20-25)",{"$f":"ExtractTxt(G68)","v":"1; 2; 3; 4; 5; 6; 7; 8; 215058; белый; 219561; серый; 220654; коричневый; 218951; 285542; 20-25"},"1,2,3,4,5,6,7,8,215058,219561,220654,218951,285542"]
["7477","Комплектация\n- механизм замка;\n- ответная запорная планка;\n- специальные переходные контакты для передачи электрического сигнала через разъединяющиеся механические части.",null,null,null,"8052","Особенности\nФиксация происходит только при наличии питания и усилии нажима не менее 1,5 кгс. При снятии напряжения питания зацеп освобождается и дверь отпирается.\n\n(220018) L-уголок AL-250UZ (белый)\n(216263) Комплект монтажа на дверь, открывающуюся вовнутрь MK AL-250UZ (белый)\n(216349) Комплект монтажа на стеклянную дверь MK AL-250UZ-Glass",{"$f":"ExtractTxt(G69)","v":"220018; белый; 216263; белый; 216349"},"220018,216263,216349"]
["7478","Назначение изделия\nЗамок предназначен для использования в качестве исполнительного устройства в составе систем контроля и управления доступом, для запирания легких и средних внутренних дверей офисов и административных помещений",null,null,null,"8053","Особенности\nФиксация происходит только при наличии питания и усилии нажима не менее 1,5 кгс. При снятии напряжения питания зацеп освобождается и дверь отпирается.\n\n(232703) L-уголок AL-250UZ (коричневый)\n(219791) Комплект монтажа на дверь, открывающуюся вовнутрь MK AL-250UZ (коричневый)\n(216349) Комплект монтажа на стеклянную дверь MK AL-250UZ-Glass",{"$f":"ExtractTxt(G70)","v":"232703; коричневый; 219791; коричневый; 216349"},"232703,219791,216349"]
["38617","Назначение изделия\nИсточник вторичного электропитания OPTIMUS-12/1.0 предназначен для обеспечения электропитания потребителей при номинальном напряжении 12В постоянного тока и токе потребления до 1А.",null,null,null,"8051","Особенности\nФиксация происходит только при наличии питания и усилии нажима не менее 1,5 кгс. При снятии напряжения питания зацеп освобождается и дверь отпирается.\n\n(220810) L-уголок AL-250UZ (серый)\n(218611) Комплект монтажа на дверь, открывающуюся вовнутрь MK AL-250UZ (серый)\n(216349) Комплект монтажа на стеклянную дверь MK AL-250UZ-Glass",{"$f":"ExtractTxt(G71)","v":"220810; серый; 218611; серый; 216349"},"220810,218611,216349"]
["38618",null,null,null,null,"8074","Особенности\nНакладной, устанавливается на деревянные и металлические двери. Со встроенным датчиком контроля замка и датчиком положения двери. Световая индикация. Цвет белый\nКомплектация\nКорпус замка, якорь, комплект крепления\n\n(054193)   L-образный уголок;AL-300PR (белый).\n(204857)   L-образный уголок с декоративным кожухом;MK AL-300PR (белый).\n(212277)   Комплект крепежа замка к уголку;AL-150-300-К.\n(274881)   Комплект креплений для регулируемой установки якоря замка относительно полотна двери;300/400PR (белый).\n(274509)   Монтажный комплект для крепления замка на дверь открывающуюся внутрь;MK AL-300/400PR-Inside (белый).\n(320938)   Комплект крепления якоря без сверления сквозного отверстия;   MK 350-PD (белый).\n\n(204834)   Планка 3мм;Планка М300 (серый).",{"$f":"ExtractTxt(G72)","v":"054193; белый; 204857; белый; 212277; 274881; белый; 274509; белый; 320938; белый; 204834; серый"},"054193,204857,212277,274881,274509,320938,204834"]
["38619","Назначение изделия\nИсточник вторичного электропитания OPTIMUS-12/1.3 mini предназначен для обеспечения электропитания потребителей при номинальном напряжении 12В постоянного тока и токе потребления до 1.3А.",null,null,null,"8076","Особенности\nНакладной, устанавливается на деревянные и металлические двери. Со встроенным датчиком контроля замка и датчиком положения двери. Световая индикация. Цвет коричневый\nКомплектация\nКорпус замка, якорь, комплект крепления\n\n(054213)   L-образный уголок;AL-300PR (коричневый).\n(204858)   L-образный уголок с декоративным кожухом;MK AL-300PR (коричневый).\n(212277)   Комплект крепежа замка к уголку;AL-150-300-К.\n(274882)   Комплект креплений для регулируемой установки якоря замка относительно полотна двери;300/400PR (коричневый).\n(274879)   Монтажный комплект для крепления замка на дверь открывающуюся внутрь;MK AL-300/400PR-Inside (коричневый).\n(320939)   Комплект крепления якоря без сверления сквозного отверстия;   MK 350-PD (коричневый).",{"$f":"ExtractTxt(G73)","v":"054213; коричневый; 204858; коричневый; 212277; 274882; коричневый; 274879; коричневый; 320939; коричневый"},"054213,204858,212277,274882,274879,320939"]
["38620",null,null,null,null,"8075","Особенности\nНакладной, устанавливается на деревянные и металлические двери. Со встроенным датчиком контроля замка и датчиком положения двери. Световая индикация. Цвет серый\nКомплектация\nКорпус замка, якорь, комплект крепления\n\n(204856) Комплект монтажа MK AL-300PR (серый)\n(054212) L-уголок AL-300PR (серый)\n(212277) AL-150-300-К Комплект крепежа к уголку\n(212295) Комплект 350Р для крепления якоря\n(204834) Планка (проставка) М300\n(274878) MK AL-300/400PR-Inside (серый) Комплект монтажа для дверей, открывающихся внутрь\n(274880) MK 300/400PR (серый) Комплект смещения якоря",{"$f":"ExtractTxt(G74)","v":"204856; серый; 054212; серый; 212277; 212295; 204834; проставка; 274878; серый; 274880; серый"},"204856,054212,212277,212295,204834,274878,274880"]
["38621","Назначение изделия\nИсточник вторичного электропитания OPTIMUS-12/2.0 предназначен для обеспечения электропитания потребителей при номинальном напряжении 12В постоянного тока и токе потребления до 2А.",null,null,null,"8077","\n(054193)   L-образный уголок;AL-300PR (белый).\n(204857)   L-образный уголок с декоративным кожухом;MK AL-300PR (белый).\n(212277)   Комплект крепежа замка к уголку;AL-150-300-К.\n(274881)   Комплект креплений для регулируемой установки якоря замка относительно полотна двери;300/400PR (белый).\n(274509)   Монтажный комплект для крепления замка на дверь открывающуюся внутрь;MK AL-300/400PR-Inside (белый).\n(320938)   Комплект крепления якоря без сверления сквозного отверстия;   MK 350-PD (белый).\n\n(204834)   Планка 3мм;Планка М300 (серый).",{"$f":"ExtractTxt(G75)","v":"054193; белый; 204857; белый; 212277; 274881; белый; 274509; белый; 320938; белый; 204834; серый"},"054193,204857,212277,274881,274509,320938,204834"]
["38622","Назначение изделия\nИсточник вторичного электропитания OPTIMUS-12/3.0 предназначен для обеспечения электропитания потребителей при номинальном напряжении 12В постоянного тока и токе потребления до 3А.",null,null,null,"8078","\n(054213)   L-образный уголок;AL-300PR (коричневый).\n(204858)   L-образный уголок с декоративным кожухом;MK AL-300PR (коричневый).\n(212277)   Комплект крепежа замка к уголку;AL-150-300-К.\n(274882)   Комплект креплений для регулируемой установки якоря замка относительно полотна двери;300/400PR (коричневый).\n(274879)   Монтажный комплект для крепления замка на дверь открывающуюся внутрь;MK AL-300/400PR-Inside (коричневый).\n(320939)   Комплект крепления якоря без сверления сквозного отверстия;   MK 350-PD (коричневый).",{"$f":"ExtractTxt(G76)","v":"054213; коричневый; 204858; коричневый; 212277; 274882; коричневый; 274879; коричневый; 320939; коричневый"},"054213,204858,212277,274882,274879,320939"]
["38623",null,null,null,null,"8079","\n(204856) Комплект монтажа MK AL-300PR (серый)\n(054212) L-уголок AL-300PR (серый)\n(212277) AL-150-300-К Комплект крепежа к уголку\n(212295) Комплект 350Р для крепления якоря\n(204834) Планка (проставка) М300\n(274878) MK AL-300/400PR-Inside (серый) Комплект монтажа для дверей, открывающихся внутрь\n(274880) MK 300/400PR (серый) Комплект смещения якоря",{"$f":"ExtractTxt(G77)","v":"204856; серый; 054212; серый; 212277; 212295; 204834; проставка; 274878; серый; 274880; серый"},"204856,054212,212277,212295,204834,274878,274880"]
["38624",null,null,null,null,"8080","Особенности\nНакладной, устанавливается на деревянные и металлические двери. Со встроенным датчиком контроля замка и датчиком положения двери. Световая индикация. Цвет белый\nКомплектация\nКорпус замка, якорь, комплект крепления, L-образный уголок в цвет замка (белый)\n\n(204859) Комплект монтажа MK AL-400PR (белый)\n(202885) Планка (проставка) М400\n(204302) R400 Пластина для крепления замка AL-400 без уголка\n(274509) MK AL-300/400PR-Inside (белый) Комплект монтажа для дверей, открывающихся внутрь\n(274881) MK 300/400PR (белый) Комплект смещения якоря\n(320938)   Комплект крепления якоря без сверления сквозного отверстия;   MK 350-PD (белый).",{"$f":"ExtractTxt(G78)","v":"белый; 204859; белый; 202885; проставка; 204302; 274509; белый; 274881; белый; 320938; белый"},"204859,202885,204302,274509,274881,320938"]
["38625",null,null,null,null,"8082","Особенности\nНакладной, устанавливается на деревянные и металлические двери. Со встроенным датчиком контроля замка и датчиком положения двери. Световая индикация. Цвет коричневый\nКомплектация\nКорпус замка, якорь, комплект крепления, L-образный уголок в цвет замка (коричневый)\n\n(204861) Комплект монтажа MK AL-400PR (коричневый)\n(320939) Комплект крепления якоря без сверления сквозного отверстия;   MK 350-PD (коричневый).\n(202885) Планка (проставка) М400\n(204302) R400 Пластина для крепления замка AL-400 без уголка\n(274879) MK AL-300/400PR-Inside (коричневый) Комплект монтажа для дверей, открывающихся внутрь\n(274882) MK 300/400PR (коричневый) Комплект смещения якоря",{"$f":"ExtractTxt(G79)","v":"коричневый; 204861; коричневый; 320939; коричневый; 202885; проставка; 204302; 274879; коричневый; 274882; коричневый"},"204861,320939,202885,204302,274879,274882"]
["38626","Назначение изделия\nПредназначен для питания -охранно-пожарных систем, системы разграничения доступа, системы видеонаблюдения, медицинское оборудование, системы передачи данных, кассовое оборудование\nОсобенности\nТок нагрузки до 10А",null,null,null,"8081","Особенности\nНакладной, устанавливается на деревянные и металлические двери. Со встроенным датчиком контроля замка и датчиком положения двери. Световая индикация. Цвет серый\nКомплектация\nКорпус замка, якорь, комплект крепления, L-образный уголок в цвет замка (серый)\n\n(054211) Комплект монтажа MK AL-400PR (серый)\n(212295) Комплект 350Р для крепления якоря\n(202885) Планка (проставка) М400\n(204302) R400 Пластина для крепления замка AL-400 без уголка\n(274878) MK AL-300/400PR-Inside (серый) Комплект монтажа для дверей, открывающихся внутрь\n(274880) MK 300/400PR (серый) Комплект смещения якоря",{"$f":"ExtractTxt(G80)","v":"серый; 054211; серый; 212295; 202885; проставка; 204302; 274878; серый; 274880; серый"},"054211,212295,202885,204302,274878,274880"]
["38627",null,null,null,null,"8083","\n(204859) Комплект монтажа MK AL-400PR (белый)\n(202885) Планка (проставка) М400\n(204302) R400 Пластина для крепления замка AL-400 без уголка\n(274509) MK AL-300/400PR-Inside (белый) Комплект монтажа для дверей, открывающихся внутрь\n(274881) MK 300/400PR (белый) Комплект смещения якоря\n(320938)   Комплект крепления якоря без сверления сквозного отверстия;   MK 350-PD (белый).",{"$f":"ExtractTxt(G81)","v":"204859; белый; 202885; проставка; 204302; 274509; белый; 274881; белый; 320938; белый"},"204859,202885,204302,274509,274881,320938"]
["36729","Назначение изделия\nИсточник вторичного электропитания резервированный Optimus предназначен для обеспечения бесперебойного электропитания потребителей при номинальном напряжением 12В постоянного тока.",null,null,null,"8084","\n(204861) Комплект монтажа MK AL-400PR (коричневый)\n(320939) Комплект крепления якоря без сверления сквозного отверстия;   MK 350-PD (коричневый).\n(202885) Планка (проставка) М400\n(204302) R400 Пластина для крепления замка AL-400 без уголка\n(274879) MK AL-300/400PR-Inside (коричневый) Комплект монтажа для дверей, открывающихся внутрь\n(274882) MK 300/400PR (коричневый) Комплект смещения якоря",{"$f":"ExtractTxt(G82)","v":"204861; коричневый; 320939; коричневый; 202885; проставка; 204302; 274879; коричневый; 274882; коричневый"},"204861,320939,202885,204302,274879,274882"]
["38628",null,null,null,null,"8085","\n(054211) Комплект монтажа MK AL-400PR (серый)\n(212295) Комплект 350Р для крепления якоря\n(202885) Планка (проставка) М400\n(204302) R400 Пластина для крепления замка AL-400 без уголка\n(274878) MK AL-300/400PR-Inside (серый) Комплект монтажа для дверей, открывающихся внутрь\n(274880) MK 300/400PR (серый) Комплект смещения якоря",{"$f":"ExtractTxt(G83)","v":"054211; серый; 212295; 202885; проставка; 204302; 274878; серый; 274880; серый"},"054211,212295,202885,204302,274878,274880"]
["36730","Назначение изделия\nИсточник вторичного электропитания резервированный Optimus предназначен для обеспечения бесперебойного электропитания потребителей при номинальном напряжением 12В постоянного тока.",null,null,null,"8055","Назначение изделия\nПредназначен для легких дверей, толщина которых меньше 35мм\nОсобенности\nЦвет: серый\nКомплектация\nОснование корпусной части с осью, корпусная часть, кожух, пластина якоря\n\nAler-R (BX500TT)- устройство дистанционного управления\nБрелок дополнительный для Aler-R",{"$f":"ExtractTxt(G84)","v":"BX500TT"},""]
["38629",null,null,null,null,"8057","Особенности\nЭксплуатация внутри помещений, установить защитный диод типа 1N4006\nКомплектация\nКорпусная часть, якорная часть, основание для крепления на стену, крепежные винты\n\n(217900) L-уголок AL-50FC",{"$f":"ExtractTxt(G85)","v":"217900"},"217900"]
["38630",null,null,null,null,"8056","\n(217900) L-уголок AL-50FC",{"$f":"ExtractTxt(G86)","v":"217900"},"217900"]
["38631",null,null,null,null,"52339","\nАбонентские устройства\n(264579) - AL-SP, Переговорное устройство\n(264578) - AL-SG, Переговорное устройство\n(264577) - AL-SR, Переговорное устройство\n\n(217328) - РИП-24 исп. 11 (РИП-24-3/7М4-Р, РИП-24 исп. 01П), Ист. пит-я\n(208944) - Аккумулятор 12 В, 7 А*ч\n\nБлок расширения:\n(264576) - AL-Z8, Блок расширения линий",{"$f":"ExtractTxt(G87)","v":"264579; 264578; 264577; 217328; РИП-24-3/7М4-Р, РИП-24 исп. 01П; 208944; 264576"},"264579,264578,264577,217328,208944,264576"]
["38632",null,null,null,null,"52340","\nАбонентские устройства\n(264579) - AL-SP, Переговорное устройство\n(264578) - AL-SG, Переговорное устройство\n(264577) - AL-SR, Переговорное устройство\n\n(217328) - РИП-24 исп. 11 (РИП-24-3/7М4-Р, РИП-24 исп. 01П), Ист. пит-я\n(208944) - Аккумулятор 12 В, 7 А*ч\n\nБлок расширения:\n(264576) - AL-Z8, Блок расширения линий",{"$f":"ExtractTxt(G88)","v":"264579; 264578; 264577; 217328; РИП-24-3/7М4-Р, РИП-24 исп. 01П; 208944; 264576"},"264579,264578,264577,217328,208944,264576"]
[null,null,null,null,null,null,null,null,""]